bitfinex-derivatives/quotes_ETHF0:USTF0_20250507
["timestamp","ask_amount","ask_price","bid_price","bid_amount"]
[1746651833020,7.42663782,1797.8,1797.7,10.14950615]
[1746651834121,3.47697072,1797.8,1797.7,11.01270615]
[1746651834423,3.47697072,1797.8,1797.7,11.01243207]
[1746651834816,1.93104,1798.1,1798.0,1.11218]
[1746651835015,1.93104,1798.1,1798.0,41.91218]
[1746651835216,3.61484,1798.1,1798.0,41.91218]
[1746651837324,1.11214,1798.1,1798.0,41.91218]
[1746651839127,2.75694,1798.1,1798.0,41.91218]
[1746651842033,2.75694,1798.1,1798.0,40.8]
[1746651842431,6.6448,1798.1,1797.7,4.32012]
[1746651842732,1.1123,1797.8,1797.7,8.69812]
[1746651842928,1.1123,1797.8,1797.7,51.13522]
[1746651843726,2.8329,1797.8,1797.7,51.13522]
[1746651844032,1.7206,1797.8,1797.7,51.13522]
[1746651844233,1.11216,1798.1,1797.7,55.7498886]
[1746651844433,1.11216,1798.1,1798.0,1.11211]
[1746651845542,1.11216,1798.1,1798.0,2.88521]
[1746651847440,1.6167,1798.2,1798.1,1.11211]
[1746651847635,13.66796369,1798.4,1798.3,1.11199]
[1746651848543,4.43379,1798.4,1798.3,1.11199]
[1746651849043,3.3218,1798.4,1798.3,1.11199]
[1746651849238,1.11187,1798.5,1798.4,1.11193]
[1746651850041,2.75027,1798.5,1798.4,1.11193]
[1746651851543,2.75027,1798.5,1798.4,2.78463]
[1746651852350,1.11193,1798.4,1798.3,8.67873]
[1746651852552,2.83733,1798.4,1798.3,5.47093]
[1746651852750,1.7254,1798.4,1798.3,5.47093]
[1746651852942,1.7254,1798.4,1798.3,46.27093]
[1746651853250,1.7254,1798.4,1798.3,46.9983666]
[1746651854144,1.7254,1798.4,1798.3,46.27093]
[1746651854350,1.7254,1798.4,1798.3,50.20636902]
[1746651854649,4.31955,1798.8,1798.7,1.11174]
[1746651854847,7.64955,1798.8,1798.7,1.11174]
[1746651855042,7.64955,1798.8,1798.6,1.11176]
[1746651855043,1.1118,1798.7,1798.6,1.11176]
[1746651855248,2.7269,1798.7,1798.6,1.11176]
[1746651859553,1.1118,1798.7,1798.6,1.11176]
[1746651860056,2.82663,1798.8,1798.7,1.11174]
[1746651860354,4.47203,1798.8,1798.7,1.11174]
[1746651862049,3.3603,1798.8,1798.7,1.11174]
[1746651862250,1.1116,1799.0,1798.9,1.11156]
[1746651862450,4.5909,1799.0,1798.9,1.11156]
[1746651862647,4.5909,1799.0,1798.9,2.90236]
[1746651863854,3.4793,1799.0,1798.9,2.90236]
[1746651864451,4.59086,1799.0,1798.9,2.90236]
[1746651865251,1.11162,1798.9,1798.8,41.91163]
[1746651865451,2.89882,1798.9,1798.8,43.65403]
[1746651866754,1.7872,1798.9,1798.8,43.65403]
[1746651866954,2.89882,1798.9,1798.8,43.65403]
[1746651868357,1.7376,1799.0,1798.9,1.11162]
[1746651868555,0.8853,1799.0,1798.9,3.65592]
[1746651868856,1.99686,1799.0,1798.9,3.65592]
[1746651869054,0.8853,1799.0,1798.9,3.65592]
[1746651869556,4.31922,1799.3,1799.2,1.11143]
[1746651869759,7.82202,1799.3,1799.2,1.11143]
[1746651871157,1.11143,1799.2,1799.1,2.79435]
[1746651871358,2.82193,1799.2,1799.1,2.79435]
[1746651872660,2.82193,1799.2,1799.1,2.82177667]
[1746651873153,2.82193,1799.2,1799.1,2.84920334]
[1746651876750,2.82193,1799.2,1799.1,2.870156]
[1746651882962,1.7105,1799.2,1799.1,2.870156]
[1746651883161,6.04557,1799.3,1799.2,1.11143]
[1746651883358,4.9342,1799.3,1799.2,2.82353]
[1746651883561,75.29959005,1800.2,1799.4,1.11131]
[1746651883562,3.2078,1799.5,1799.4,1.11131]
[1746651883867,0.8396,1799.5,1799.4,2.949216]
[1746651884362,2.4934,1799.5,1799.4,2.95853294]
[1746651886066,3.60465,1799.5,1799.4,2.95853294]
[1746651887161,3.60465,1799.5,1799.4,2.87341]
[1746651887366,3.60465,1799.5,1799.4,2.96782572]
[1746651887855,2.4934,1799.5,1799.4,2.96782572]
[1746651890666,3.60465,1799.5,1799.4,2.96782572]
[1746651890968,3.60465,1799.5,1799.4,2.99539744]
[1746651891465,3.60465,1799.5,1799.4,3.02296916]
[1746651891865,3.60465,1799.5,1799.4,3.78078965]
[1746651892363,3.60465,1799.5,1799.4,3.60365877]
[1746651892570,3.60465,1799.5,1799.4,3.80836137]
[1746651893369,3.60465,1799.5,1799.4,3.0781126]
[1746651894665,0.8821,1799.6,1799.5,1.11125]
[1746651894862,0.8821,1799.6,1799.5,2.85335]
[1746651895060,1.99329,1799.6,1799.5,2.85335]
[1746651895467,3.66009,1799.6,1799.5,3.0613892]
[1746651895965,3.66009,1799.6,1799.5,3.0647258]
[1746651896471,3.66009,1799.6,1799.5,3.0680624]
[1746651897869,3.66009,1799.6,1799.5,3.79846439]
[1746651899472,3.66009,1799.6,1799.5,3.0680624]
[1746651899673,3.66009,1799.6,1799.5,1.3259624]
[1746651899972,3.66009,1799.6,1799.5,1.32930401]
[1746651900775,3.66009,1799.6,1799.5,0.21805401]
[1746651900972,3.66009,1799.6,1799.5,1.33264562]
[1746651901175,7.33409,1799.6,1799.5,1.33264562]
[1746651902380,7.33409,1799.6,1799.5,0.22139562]
[1746651902582,1.11137,1799.3,1799.2,3.2078]
[1746651902880,1.11162,1799.0,1798.9,1.11158]
[1746651903066,4.78562,1799.0,1798.9,1.84245521]
[1746651903578,6.44442,1799.0,1798.9,1.84245521]
[1746651906375,5.3328,1799.0,1798.9,1.84070445]
[1746651906575,3.674,1799.0,1798.9,5.04850445]
[1746651906775,3.674,1799.0,1798.9,3.43240106]
[1746651906982,3.674,1799.0,1798.9,6.64020106]
[1746651907185,1.6841,1799.1,1799.0,1.11156]
[1746651907376,1.6841,1799.1,1799.0,3.55738445]
[1746651909880,1.11168,1798.8,1798.7,7.5518]
[1746651910175,1.11174,1798.7,1798.6,1.11179]
[1746651910382,4.50404,1798.7,1798.6,0.72980778]
[1746651910683,1.11187,1798.5,1798.4,46.2559]
[1746651910883,1.11187,1798.5,1798.4,46.98593036]
[1746651911184,1.11193,1798.4,1798.3,4.31974]
[1746651911383,2.77933,1798.4,1798.3,7.5518]
[1746651912185,6.45333,1798.4,1798.3,8.66379]
[1746651912680,6.45333,1798.4,1798.3,7.5518]
[1746651912985,1.11199,1798.3,1798.2,40.8]
[1746651913285,1.11205,1798.2,1798.1,1.1121]
[1746651913884,2.77945,1798.2,1798.1,1.1121]
[1746651915572,1.6674,1798.2,1798.1,1.1121]
[1746651915779,3.674,1798.8,1798.7,1.11174]
[1746651915981,4.78573,1798.8,1798.7,4.31954]
[1746651916287,1.11173,1798.8,1798.7,1.11174]
[1746651917178,6.41773,1798.8,1798.7,1.11174]
[1746651917379,10.34591369,1798.7,1798.6,2.80175]
[1746651917578,11.97791369,1798.7,1798.6,2.80175]
[1746651917779,11.97791369,1798.7,1798.5,3.2078]
[1746651917974,2.7438,1798.6,1798.5,3.2078]
[1746651918781,1.632,1798.6,1798.5,6.00967]
[1746651920989,4.9174,1798.9,1798.8,1.11168]
[1746651921180,9.70307,1798.9,1798.8,1.11168]
[1746651921383,1.1118,1798.7,1798.6,1.11176]
[1746651922388,1.1118,1798.7,1798.6,2.85136]
[1746651922588,1.1118,1798.7,1798.6,1.11176]
[1746651923181,4.7858,1798.7,1798.6,1.11176]
[1746651925178,1.11199,1798.4,1798.3,1.11197]
[1746651925588,3.65859,1798.4,1798.3,1.11197]
[1746651925785,2.5466,1798.4,1798.2,1.6522]
[1746651925989,1.11205,1798.2,1798.1,1.11209]
[1746651926179,4.78605,1798.2,1798.1,1.11209]
[1746651927290,3.674,1798.2,1798.1,1.11209]
[1746651927492,3.674,1798.2,1798.1,2.74859]
[1746651927886,4.78605,1798.2,1798.1,2.74859]
[1746651928093,2.83155,1798.2,1798.1,2.74859]
[1746651928504,1.7195,1798.2,1798.1,2.74859]
[1746651928790,2.83155,1798.2,1798.1,2.74859]
[1746651928986,1.7195,1798.2,1798.1,2.74859]
[1746651929193,2.83155,1798.2,1798.1,2.74859]
[1746651930595,2.83155,1798.2,1798.1,1.6365]
[1746651931205,6.50555,1798.2,1798.1,1.6365]
[1746651931508,1.11211,1798.1,1798.0,41.91212]
[1746651931701,2.76811,1798.1,1798.0,41.91212]
[1746651931899,2.76811,1798.1,1798.0,40.8]
[1746651932096,2.76811,1798.1,1798.0,42.4412]
[1746651933294,2.76811,1798.1,1798.0,43.55338]
[1746651934704,2.76811,1798.1,1798.0,45.649]
[1746651935619,2.76811,1798.1,1798.0,46.76118]
[1746651935907,1.11211,1798.1,1798.0,46.76118]
[1746651936309,2.72791,1798.1,1798.0,46.76118]
[1746651938510,1.11211,1798.1,1798.0,46.76118]
[1746651938908,4.0904,1798.4,1798.3,1.11199]
[1746651938909,4.31975,1798.4,1798.3,1.11199]
[1746651939608,2.77998,1798.3,1798.0,44.0078]
[1746651939912,1.11224,1797.9,1797.8,3.2078]
[1746651940107,1.11242,1797.7,1797.6,7.12919]
[1746651940308,1.11242,1797.7,1797.6,51.86582404]
[1746651940710,1.11242,1797.7,1797.6,48.65802404]
[1746651940907,1.11242,1797.7,1797.6,51.8653069]
[1746651941219,1.11242,1797.7,1797.6,51.13699]
[1746651942015,2.86142,1797.7,1797.6,51.13699]
[1746651943006,2.86142,1797.7,1797.6,5.99199]
[1746651943206,2.86142,1797.7,1797.6,10.33599]
[1746651943608,4.5085,1797.8,1797.7,1.11236]
[1746651943609,5.62085,1797.8,1797.7,1.11236]
[1746651943906,5.62085,1797.8,1797.7,2.85346]
[1746651944606,7.35365,1797.8,1797.7,2.85346]
[1746651946119,3.67965,1797.8,1797.7,2.85346]
[1746651949626,2.5673,1797.8,1797.7,2.85346]
[1746651950123,3.6796,1797.8,1797.7,2.85346]
[1746651952825,1.11236,1797.7,1797.6,7.5518]
[1746651953018,2.73856,1797.7,1797.6,7.5518]
[1746651953219,6.41256,1797.7,1797.6,7.5518]
[1746651953421,6.41256,1797.7,1797.6,8.66422]
[1746651954121,6.41256,1797.7,1797.6,4.32022]
[1746651955820,6.41256,1797.7,1797.6,3.2078]
[1746651956827,6.41256,1797.7,1797.6,4.32022]
[1746651959128,1.11242,1797.6,1797.5,7.24354]
[1746651959428,3.65762,1797.6,1797.5,7.97137011]
[1746651959729,4.78641,1797.7,1797.6,1.11242]
[1746651959928,7.40581,1797.7,1797.6,1.11242]
[1746651966330,3.674,1797.7,1797.6,1.11242]
[1746651966631,3.674,1797.7,1797.6,5.27787575]
[1746651966833,3.674,1797.7,1797.6,6.00557642]
[1746651967034,3.674,1797.7,1797.6,6.00531127]
[1746651967235,14.29976147,1798.0,1797.9,1.11224]
[1746651967428,14.29976147,1798.0,1797.9,1.8401306]
[1746651968833,14.29976147,1798.0,1797.9,1.84142677]
[1746651969236,17.97376147,1798.0,1797.9,1.84142677]
[1746651970239,10.57679,1798.0,1797.9,1.84142677]
[1746651970632,10.57679,1798.0,1797.9,1.84184191]
[1746651970937,7.36899,1798.0,1797.9,1.84184191]
[1746651973241,1.11236,1797.7,1797.6,4.32016]
[1746651973434,1.11236,1797.7,1797.6,5.04970516]
[1746651973630,4.44216,1797.7,1797.6,5.04970516]
[1746651974141,8.11616,1797.7,1797.6,5.04970516]
[1746651974338,8.11616,1797.7,1797.6,3.93723677]
[1746651974538,8.11616,1797.7,1797.6,5.04965677]
[1746651975943,8.11616,1797.7,1797.6,1.84185677]
[1746651976345,8.11616,1797.7,1797.6,1.84124911]
[1746651977345,8.11616,1797.7,1797.6,1.84108701]
[1746651978846,8.11616,1797.7,1797.6,0.72866701]
[1746651979041,8.11616,1797.7,1797.4,47.67853]
[1746651979042,1.11248,1797.5,1797.4,3.2078]
[1746651979241,1.11248,1797.5,1797.4,5.04897449]
[1746651979952,1.11248,1797.5,1797.4,5.04831199]
[1746651980151,4.78648,1797.5,1797.4,5.04831199]
[1746651980351,4.78648,1797.5,1797.4,3.93576199]
[1746651980552,4.78648,1797.5,1797.4,3.2078]
[1746651981051,4.78648,1797.5,1797.4,3.93561007]
[1746651981251,4.78648,1797.5,1797.4,4.32035]
[1746651982052,4.78648,1797.5,1797.4,3.2078]
[1746651982251,4.78648,1797.5,1797.4,4.32035]
[1746651983456,3.674,1797.5,1797.4,5.04765197]
[1746651983656,3.45260438,1797.5,1797.4,10.88335197]
[1746651984061,3.45260438,1797.5,1797.4,11.60323634]
[1746651984260,1.11225,1797.9,1797.8,1.1123]
[1746651984757,3.72234,1798.0,1797.9,1.11224]
[1746651984954,3.72234,1798.0,1797.9,2.79534]
[1746651985154,7.39634,1798.0,1797.9,2.79534]
[1746651986061,7.39634,1798.0,1797.9,1.6831]
[1746651986257,1.11224,1797.9,1797.8,1.11228]
[1746651986458,2.79004,1797.9,1797.8,1.84041316]
[1746651987360,2.79004,1797.9,1797.8,1.84064069]
[1746651989263,2.79004,1797.9,1797.8,1.84089342]
[1746651990965,2.79004,1797.9,1797.8,1.84115759]
[1746651991167,2.79004,1797.9,1797.8,1.84115208]
[1746651994869,8.50918147,1798.0,1797.9,1.11224]
[1746651995166,12.18318147,1798.0,1797.9,1.11224]
[1746651995363,12.18318147,1798.0,1797.9,3.60744]
[1746651996368,13.97268147,1798.0,1797.9,3.60744]
[1746651998269,6.57571,1798.0,1797.9,3.60744]
[1746652003270,6.57571,1798.0,1797.9,2.75504]
[1746652003470,6.57571,1798.0,1797.9,1.6428]
[1746652004274,6.57571,1798.0,1797.9,2.75504]
[1746652005573,1.1123,1797.9,1797.8,1.11226]
[1746652005774,3.7379,1797.9,1797.8,3.6100329]
[1746652006067,7.4119,1797.9,1797.8,3.6100329]
[1746652007574,7.4119,1797.9,1797.8,3.61015603]
[1746652007877,7.4119,1797.9,1797.8,3.61018023]
[1746652009275,7.4119,1797.9,1797.8,2.88146]
[1746652009476,7.4119,1797.9,1797.8,3.61034654]
[1746652011481,6.2996,1797.9,1797.8,3.61034654]
[1746652011775,3.674,1797.9,1797.8,3.61034654]
[1746652012076,3.674,1797.9,1797.8,4.34113497]
[1746652012378,7.39697147,1798.0,1797.9,1.11224]
[1746652012681,7.39697147,1798.0,1797.9,5.10571497]
[1746652012880,8.50915147,1798.0,1797.9,5.10571497]
[1746652013070,8.50915147,1798.0,1797.9,5.10675259]
[1746652013269,10.16265147,1798.0,1797.9,2.57295259]
[1746652014180,13.83665147,1798.0,1797.9,2.57295259]
[1746652014381,13.83665147,1798.0,1797.9,1.84216416]
[1746652016484,6.43968,1798.0,1797.9,1.84216416]
[1746652017979,6.43968,1798.0,1797.9,2.57436095]
[1746652020285,6.43968,1798.0,1797.9,1.84216416]
[1746652020485,6.43968,1798.0,1797.9,1.84339678]
[1746652021182,6.43968,1798.0,1797.9,3.60589678]
[1746652021576,6.43968,1798.0,1797.9,2.87474]
[1746652021776,6.43968,1798.0,1797.9,4.33759513]
[1746652022285,13.83665147,1798.0,1797.9,4.33759513]
[1746652023481,13.83665147,1798.0,1797.9,4.33760762]
[1746652025289,13.83665147,1798.0,1797.9,4.3377959]
[1746652025481,13.83665147,1798.0,1797.9,4.33778896]
[1746652028394,13.83665147,1798.0,1797.9,4.33773422]
[1746652028991,13.83665147,1798.0,1797.9,4.33774546]
[1746652030891,13.83665147,1798.0,1797.9,4.33811281]
[1746652031895,15.67385369,1798.0,1797.9,4.33811281]
[1746652034594,15.67385369,1798.0,1797.9,4.33794328]
[1746652036895,15.67385369,1798.0,1797.9,1.46320328]
[1746652037093,1.11242,1797.6,1797.5,3.2078]
[1746652037298,1.11252,1797.5,1797.4,1.11248]
[1746652037491,3.3768,1797.5,1797.4,1.11248]
[1746652037689,3.2078,1797.6,1797.5,1.11248]
[1746652037892,3.2078,1797.6,1797.5,2.00098]
[1746652040401,4.32022,1797.6,1797.5,2.00098]
[1746652041301,11.75731418,1797.6,1797.5,2.00098]
[1746652042403,10.64489418,1797.6,1797.5,2.00098]
[1746652043102,7.43709418,1797.6,1797.5,6.06868]
[1746652045106,9.14799418,1797.9,1797.8,1.1123]
[1746652045408,10.26023418,1797.9,1797.8,1.1123]
[1746652045799,1.1123,1797.8,1797.7,4.32011]
[1746652045999,2.7534,1797.8,1797.7,1.11231]
[1746652046201,1.11236,1797.7,1797.6,5.4504]
[1746652046404,4.50806,1797.7,1797.6,5.4504]
[1746652047107,8.18206,1797.7,1797.6,5.4504]
[1746652049904,15.61915418,1797.7,1797.6,5.4504]
[1746652050306,11.94515418,1797.7,1797.6,5.4504]
[1746652052103,15.61915418,1797.7,1797.6,5.4504]
[1746652052813,8.18206,1797.7,1797.6,5.4504]
[1746652053110,4.50806,1797.7,1797.6,5.4504]
[1746652056413,8.18206,1797.7,1797.6,5.4504]
[1746652056620,3.674,1797.7,1797.6,5.4504]
[1746652056914,3.674,1797.7,1797.6,8.7648]
[1746652057114,7.43709418,1797.8,1797.7,1.11236]
[1746652057415,7.43709418,1797.8,1797.7,2.74286]
[1746652058511,7.43709418,1797.8,1797.7,3.49397418]
[1746652058714,7.43709418,1797.8,1797.7,4.21809845]
[1746652060115,3.2903,1797.9,1797.8,1.1123]
[1746652060315,3.2903,1797.9,1797.8,3.62258716]
[1746652061021,7.43709418,1798.0,1797.9,1.11224]
[1746652061209,7.43709418,1798.0,1797.9,3.62252716]
[1746652061408,7.43709418,1798.0,1797.9,4.46292716]
[1746652062117,7.43709418,1798.0,1797.9,4.46340258]
[1746652062511,9.11719418,1798.0,1797.9,4.46340258]
[1746652062809,1.6801,1798.0,1797.9,4.46340258]
[1746652064414,9.38152418,1798.1,1798.0,1.11218]
[1746652064415,8.26939418,1798.1,1798.0,1.11218]
[1746652064617,5.9738909,1798.1,1798.0,3.63353092]
[1746652064818,3.5015809,1798.1,1798.0,8.63353092]
[1746652065117,9e-07,1798.1,1798.0,12.53453092]
[1746652065315,9e-07,1798.1,1798.0,53.33453092]
[1746652065510,9e-07,1798.1,1798.0,54.46220319]
[1746652066419,9e-07,1798.1,1798.0,54.05765622]
[1746652066918,9e-07,1798.1,1798.0,54.0559082]
[1746652067916,7.90926459,1798.3,1798.2,1.11205]
[1746652068219,13.01124005,1798.6,1798.4,1.11193]
[1746652068424,13.01124005,1798.6,1798.4,5.07011781]
[1746652068624,7.88031332,1798.5,1798.4,46.5938582]
[1746652068922,6.33561332,1798.5,1798.4,48.28925805]
[1746652069122,9.27192106,1799.0,1798.9,1.11162]
[1746652069319,9.27192106,1799.0,1798.9,9.40180766]
[1746652069918,9.27192106,1799.0,1798.9,11.5794052]
[1746652070119,9.27192106,1799.0,1798.9,11.12950766]
[1746652071529,9.27192106,1799.0,1798.9,11.12778238]
[1746652071821,9.27192106,1799.0,1798.9,11.12678238]
[1746652073130,2.4872,1799.3,1799.2,1.11143]
[1746652073331,2.4872,1799.3,1799.2,4.31923]
[1746652073836,3.59857,1799.3,1799.2,3.2078]
[1746652074038,8.59857,1799.3,1799.2,3.2078]
[1746652074235,11.1612,1799.3,1799.2,4.31923]
[1746652074736,6.1612,1799.3,1799.2,4.31923]
[1746652074939,6.1612,1799.3,1799.2,8.65123]
[1746652075236,2.4872,1799.3,1799.2,8.65123]
[1746652076037,0.8614,1799.3,1799.2,8.65123]
[1746652077939,2.6167,1799.4,1799.3,1.11137]
[1746652078135,2.6167,1799.4,1799.3,2.86147]
[1746652084941,3.72801,1799.4,1799.3,1.11137]
[1746652085142,2.6167,1799.4,1799.3,1.11137]
[1746652085446,3.72801,1799.4,1799.3,1.11137]
[1746652086250,1.11137,1799.3,1799.2,4.31917]
[1746652086448,2.83747,1799.3,1799.2,8.65017]
[1746652088049,1.7261,1799.3,1799.2,8.65017]
[1746652088250,5.4001,1799.3,1799.2,8.65017]
[1746652089349,6.51147,1799.3,1799.2,8.65017]
[1746652090653,5.4001,1799.3,1799.2,8.65017]
[1746652091352,5.4001,1799.3,1799.2,9.39713425]
[1746652092155,1.7261,1799.3,1799.2,9.39776087]
[1746652092853,0.8577,1799.4,1799.3,1.11137]
[1746652093054,0.8577,1799.4,1799.3,3.63046087]
[1746652093246,2.5672,1799.5,1799.4,1.11131]
[1746652093447,2.5672,1799.5,1799.4,5.06670087]
[1746652093947,2.5672,1799.5,1799.4,1.86087493]
[1746652095246,2.5672,1799.5,1799.4,5.06867493]
[1746652095450,0.8261,1799.5,1799.4,5.06867493]
[1746652095754,1.7135,1799.9,1799.8,1.11106]
[1746652095951,3.4821,1799.9,1799.8,1.86085656]
[1746652096153,3.4821,1799.9,1799.8,5.06865656]
[1746652096350,3.4821,1799.9,1799.8,5.78963285]
[1746652097255,3.4821,1799.9,1799.8,7.55243285]
[1746652097852,3.4821,1799.9,1799.8,7.55292635]
[1746652099554,3.4821,1799.9,1799.8,7.55233895]
[1746652101159,3.4821,1799.9,1799.8,4.34453895]
[1746652101359,3.4821,1799.9,1799.8,7.55233895]
[1746652101560,3.4821,1799.9,1799.8,7.55217166]
[1746652101763,4.5931,1799.9,1799.8,1.47051166]
[1746652102063,1.11121,1799.6,1799.5,4.327]
[1746652102260,1.11131,1799.4,1799.3,1.11133]
[1746652102460,4.52479,1799.5,1799.4,1.11131]
[1746652102766,3.4135,1799.5,1799.4,1.11131]
[1746652102959,1.11117,1799.7,1799.6,1.11119]
[1746652103261,7.38067,1799.7,1799.6,1.11119]
[1746652103561,7.38067,1799.7,1799.6,5.43819]
[1746652104961,1.11119,1799.6,1799.5,1.1112]
[1746652105160,2.82789,1799.6,1799.5,1.1112]
[1746652106365,5.3907,1799.6,1799.5,1.1112]
[1746652106851,3.674,1799.6,1799.5,4.319]
[1746652107051,3.674,1799.6,1799.5,5.133]
[1746652107254,0.8436,1799.8,1799.7,1.11112]
[1746652107456,3.62959,1800.0,1799.7,5.43812]
[1746652107655,3.3571,1800.0,1799.9,1.111]
[1746652108258,3.3571,1800.0,1799.9,2.7486]
[1746652108664,1.6878,1800.0,1799.9,2.7486]
[1746652108960,2.79874,1800.0,1799.9,1.111]
[1746652109161,8.12754,1800.0,1799.9,1.111]
[1746652109356,5.3618,1800.0,1799.9,1.111]
[1746652109851,6.47274,1800.0,1799.9,1.111]
[1746652110051,2.79874,1800.0,1799.9,2.838]
[1746652110254,4.45354,1800.0,1799.9,2.838]
[1746652111067,3.3426,1800.0,1799.9,2.838]
[1746652111266,7.0166,1800.0,1799.9,2.838]
[1746652111967,8.12754,1800.0,1799.9,1.111]
[1746652112159,4.45354,1800.0,1799.9,1.111]
[1746652112361,3.3426,1800.0,1799.9,1.111]
[1746652113867,1.11087,1800.2,1800.1,1.11088]
[1746652114265,6.44867,1800.2,1800.1,1.11088]
[1746652114869,6.44867,1800.2,1800.1,2.77758]
[1746652115166,2.77467,1800.2,1800.1,2.77758]
[1746652116164,1.11088,1800.1,1800.0,5.43789]
[1746652116369,2.76908,1800.1,1800.0,5.43789]
[1746652117169,1.6582,1800.1,1800.0,5.43789]
[1746652117363,1.6582,1800.1,1800.0,7.13519]
[1746652117764,2.76908,1800.1,1800.0,7.13519]
[1746652118865,2.76908,1800.1,1800.0,5.43789]
[1746652119268,6.44308,1800.1,1800.0,5.43789]
[1746652122160,1.6582,1800.1,1800.0,7.84378041]
[1746652122569,2.76908,1800.1,1800.0,7.84378041]
[1746652123672,2.76908,1800.1,1800.0,7.84426913]
[1746652125372,2.76908,1800.1,1800.0,7.84432625]
[1746652125574,2.76908,1800.1,1800.0,7.84433165]
[1746652125874,2.76908,1800.1,1800.0,7.10609]
[1746652126066,1.11088,1800.1,1800.0,7.10609]
[1746652126267,1.11088,1800.1,1800.0,7.84435843]
[1746652126473,1.11088,1800.1,1800.0,7.10609]
[1746652126774,1.11088,1800.1,1800.0,5.0652228]
[1746652126978,1.11098,1800.0,1799.9,1.11094]
[1746652127275,2.83214,1800.0,1799.9,6.17523402]
[1746652127463,2.83214,1800.0,1799.9,7.90453402]
[1746652127773,1.7212,1800.0,1799.9,7.90453402]
[1746652127975,2.83214,1800.0,1799.9,7.90453402]
[1746652128169,1.7212,1800.0,1799.9,7.90453402]
[1746652128567,3.378,1800.0,1799.9,7.90496931]
[1746652130073,4.48894,1800.0,1799.9,6.17566931]
[1746652130275,4.48894,1800.0,1799.9,6.17560054]
[1746652130474,3.378,1800.0,1799.9,6.17560054]
[1746652130775,3.378,1800.0,1799.9,7.90880054]
[1746652132173,3.378,1800.0,1799.9,7.90876956]
[1746652132570,4.48894,1800.0,1799.9,7.90876956]
[1746652133873,3.378,1800.0,1799.9,7.90876956]
[1746652134678,0.8492,1800.0,1799.9,8.62337569]
[1746652134883,3.54997,1800.2,1800.1,1.11088]
[1746652135077,8.08267,1800.2,1800.1,1.84950956]
[1746652135878,8.08267,1800.2,1800.1,1.85086718]
[1746652136181,6.9718,1800.2,1800.1,1.85086718]
[1746652136381,6.9718,1800.2,1800.1,2.67266718]
[1746652136584,6.9718,1800.2,1800.1,4.43926718]
[1746652136982,5.3551,1800.2,1800.1,4.43926718]
[1746652137183,1.6811,1800.2,1800.1,4.43926718]
[1746652137484,0.8587,1800.2,1800.1,4.43926718]
[1746652137684,0.8587,1800.2,1800.1,4.4399579]
[1746652138284,0.8587,1800.2,1800.1,5.15569476]
[1746652138584,1.96167,1800.3,1800.2,1.11082]
[1746652138884,1.96167,1800.3,1800.2,7.9420979]
[1746652139083,5.63567,1800.3,1800.2,7.9420979]
[1746652139382,7.28237,1800.3,1800.2,7.9420979]
[1746652141082,7.28237,1800.3,1800.2,7.94213808]
[1746652142087,6.1716,1800.3,1800.2,7.94213808]
[1746652144390,6.1716,1800.3,1800.2,7.94205581]
[1746652145187,3.674,1800.3,1800.2,7.94205581]
[1746652145890,3.674,1800.3,1800.2,8.66156169]
[1746652146092,0.8272,1800.4,1800.3,1.11075]
[1746652146290,0.8272,1800.4,1800.3,3.47598581]
[1746652146494,2.5071,1800.4,1800.3,3.47598581]
[1746652148094,2.5071,1800.4,1800.3,3.47576047]
[1746652148294,6.1811,1800.4,1800.3,3.47576047]
[1746652149288,2.5071,1800.4,1800.3,3.47576047]
[1746652150899,3.61779,1800.4,1800.3,3.47576047]
[1746652151098,7.29179,1800.4,1800.3,3.47576047]
[1746652152312,7.29179,1800.4,1800.3,0.74041047]
[1746652152498,1.11088,1800.1,1800.0,5.43494]
[1746652152799,2.5711,1800.3,1800.2,1.11082]
[1746652153198,6.2451,1800.3,1800.2,1.11082]
[1746652154001,7.35591,1800.3,1800.2,1.11082]
[1746652156802,6.2451,1800.3,1800.2,1.85098148]
[1746652157105,2.5711,1800.3,1800.2,2.72708148]
[1746652157305,2.5711,1800.3,1800.2,2.72703509]
[1746652157605,1.11082,1800.2,1800.1,1.11085]
[1746652157798,1.11093,1800.1,1800.0,1.11089]
[1746652158105,1.98413,1800.1,1800.0,6.17540055]
[1746652158906,0.8732,1800.1,1800.0,6.17540055]
[1746652159103,0.8732,1800.1,1800.0,5.43489]
[1746652159307,2.6057,1800.1,1800.0,6.17517107]
[1746652159509,2.6057,1800.1,1800.0,9.38297107]
[1746652160010,2.6057,1800.1,1800.0,7.78300144]
[1746652160410,2.6057,1800.1,1800.0,9.51360144]
[1746652161713,0.8732,1800.1,1800.0,9.51360144]
[1746652161914,0.8732,1800.1,1800.0,10.39890144]
[1746652168325,1.7724,1800.2,1800.1,1.11088]
[1746652168524,1.7724,1800.2,1800.1,3.48066107]
[1746652169524,1.7724,1800.2,1800.1,4.20029144]
[1746652170319,1.7724,1800.2,1800.1,4.20089312]
[1746652171231,1.7511,1800.3,1800.2,1.11082]
[1746652171419,3.3929,1800.3,1800.2,3.55670275]
[1746652171619,3.3929,1800.3,1800.2,4.27633312]
[1746652172321,7.0669,1800.3,1800.2,4.27633312]
[1746652174029,7.0669,1800.3,1800.2,4.27619889]
[1746652175929,7.0669,1800.3,1800.2,4.27619452]
[1746652179230,2.20348834,1800.3,1800.2,4.27619452]
[1746652179824,2.20348834,1800.3,1800.2,45.07619452]
[1746652180222,3.4911,1800.4,1800.3,1.11075]
[1746652180427,3.4911,1800.4,1800.3,11.78422452]
[1746652181424,3.4911,1800.4,1800.3,11.79437852]
[1746652183331,3.4911,1800.4,1800.3,11.79445138]
[1746652184631,12.4637829,1800.8,1800.7,1.11051]
[1746652185130,17.2482329,1800.8,1800.7,1.11051]
[1746652186228,18.9030329,1800.8,1800.7,1.11051]
[1746652187128,17.7925829,1800.8,1800.7,1.11051]